fUST/lending_fUST_20250506
["ID","MTS","AMOUNT","RATE_DAILY","PERIOD"]
[359993269,1746466289959,-186.13497407,0.00036438,8]
[359993270,1746466289968,-723.92,0.00036438,8]
[359993271,1746466289978,-601.89,0.00036438,8]
[359993272,1746466289990,-516.84,0.00036438,8]
[359993273,1746466289999,-744.57,0.00036438,8]
[359993274,1746466290009,-856.46,0.00036438,8]
[359993275,1746466290019,-763.86,0.00036438,8]
[359993276,1746466290145,-400.0,0.00036438,8]
[359993277,1746466290170,-508.21,0.00036438,8]
[359993278,1746466290180,-502.77,0.00036438,8]
[359993279,1746466290190,-2573.19,0.00036438,8]
[359993280,1746466290199,-412.76,0.00036438,8]
[359993281,1746466290209,-1858.43,0.00036438,8]
[359993282,1746466290219,-663.7,0.00036438,8]
[359993283,1746466290229,-752.3,0.00036438,8]
[359993284,1746466290239,-400.0,0.00036438,8]
[359993285,1746466290249,-3742.18,0.00036438,8]
[359993286,1746466290259,-742.46,0.00036438,8]
[359993287,1746466290269,-791.14,0.00036438,8]
[359993288,1746466290282,-500.0,0.00036438,8]
[359993289,1746466290293,-400.0,0.00036438,8]
[359993290,1746466290303,-400.0,0.00036438,8]
[359993291,1746466290312,-424.25,0.00036438,8]
[359993292,1746466290323,-400.0,0.00036438,8]
[359993293,1746466290333,-1500.0,0.00036438,33]
[359993294,1746466290342,-971.48,0.00036438,8]
[359993295,1746466290352,-400.0,0.00036438,8]
[359993296,1746466290362,-410.74,0.00036438,8]
[359993297,1746466290373,-502.97,0.00036438,8]
[359993298,1746466290383,-1385.97,0.00036438,8]
[359993299,1746466290392,-828.56,0.00036438,8]
[359993300,1746466290402,-1013.68,0.00036438,8]
[359993301,1746466290411,-904.75,0.00036438,8]
[359993302,1746466290421,-400.0,0.00036438,8]
[359993303,1746466290430,-1542.95,0.00036438,8]
[359993304,1746466290440,-544.83,0.00036438,8]
[359993305,1746466290450,-906.63,0.00036438,8]
[359993306,1746466290460,-899.92,0.00036438,8]
[359993307,1746466290470,-1685.97,0.00036438,8]
[359993308,1746466290480,-400.0,0.00036438,8]
[359993309,1746466290489,-400.0,0.00036438,8]
[359993310,1746466290499,-400.0,0.00036438,8]
[359993311,1746466290508,-411.02,0.00036438,8]
[359993312,1746466290518,-2098.43,0.00036438,8]
[359993313,1746466290527,-544.02,0.00036438,8]
[359993314,1746466290539,-942.66,0.00036438,8]
[359993315,1746466290548,-400.0,0.00036438,8]
[359993316,1746466290558,-1085.21,0.00036438,8]
[359993317,1746466290567,-400.0,0.00036438,8]
[359993318,1746466290576,-400.0,0.00036438,8]
[359993319,1746466290586,-413.54,0.00036438,8]
[359993320,1746466290596,-441.99,0.00036438,8]
[359993321,1746466290605,-3512.58,0.00036438,2]
[359993322,1746466290616,-545.82,0.00036438,8]
[359993323,1746466290625,-748.45,0.00036438,8]
[359993324,1746466290635,-1080.9,0.00036438,8]
[359993325,1746466290644,-617.8,0.00036438,8]
[359993326,1746466290654,-400.0,0.00036438,8]
[359993327,1746466290663,-521.08,0.00036438,8]
[359993328,1746466290673,-400.0,0.00036438,8]
[359993329,1746466290682,-580.82,0.00036438,8]
[359993330,1746466290691,-1700.23,0.00036438,8]
[359993331,1746466290700,-549.37431724,0.00036438,8]
[359993332,1746466290709,-250.90636921,0.00036438,8]
[359993333,1746466290718,-421.77,0.00036438,8]
[359993334,1746466290728,-1322.26,0.00036438,8]
[359993335,1746466290738,-400.0,0.00036438,8]
[359993336,1746466290747,-400.0,0.00036438,8]
[359993337,1746466290756,-2273.92,0.00036438,8]
[359993338,1746466290766,-379.6397861,0.00036438,8]
[359993339,1746466290775,-942.85,0.00036438,8]
[359993340,1746466290785,-1099.01,0.00036438,8]
[359993341,1746466290794,-2641.87,0.00036438,8]
[359993342,1746466290803,-504.9,0.00036438,8]
[359993343,1746466290812,-2078.31,0.00036438,8]
[359993344,1746466290821,-1796.69,0.00036438,8]
[359993345,1746466290831,-404.27,0.00036438,8]
[359993346,1746466290840,-997.13,0.00036438,8]
[359993347,1746466290850,-2875.2,0.00036438,8]
[359993348,1746466290871,-933.37,0.00036438,8]
[359993349,1746466290881,-400.0,0.00036438,8]
[359993350,1746466290891,-400.0,0.00036438,8]
[359993351,1746466290902,-2166.02,0.00036438,8]
[359993352,1746466290912,-281.25400012,0.00036438,8]
[359993353,1746466290922,-495.11,0.00036438,8]
[359993354,1746466290932,-478.21,0.00036438,8]
[359993355,1746466290942,-828.45,0.00036438,8]
[359993356,1746466290952,-400.0,0.00036438,8]
[359993357,1746466290962,-2370.89,0.00036438,8]
[359993358,1746466290972,-833.54,0.00036438,8]
[359993359,1746466290983,-400.0,0.00036438,8]
[359993360,1746466290993,-11132.27,0.00036438,8]
[359993361,1746466291003,-414.2,0.00036438,8]
[359993362,1746466291014,-1942.95,0.00036438,8]
[359993363,1746466291024,-617.39,0.00036438,8]
[359993364,1746466291035,-400.0,0.00036438,8]
[359993365,1746466291045,-534.63,0.00036438,8]
[359993366,1746466291055,-400.0,0.00036438,8]
[359993367,1746466291065,-832.63,0.00036438,8]
[359993368,1746466291075,-400.0,0.00036438,8]
[359993369,1746466291085,-937.4,0.00036438,8]
[359993370,1746466291095,-9074.6,0.00036438,8]
[359993371,1746466291106,-1547.41,0.00036438,8]
[359993372,1746466291116,-1484.01,0.00036438,8]
[359993373,1746466291126,-2080.35,0.00036438,8]
[359993374,1746466291135,-400.0,0.00036438,8]
[359993375,1746466291146,-2232.97,0.00036438,8]
[359993376,1746466291156,-1691.97,0.00036438,8]
[359993377,1746466291167,-353.95604588,0.00036438,8]
[359993378,1746466291177,-400.0,0.00036438,8]
[359993379,1746466291187,-3521.81,0.00036438,8]
[359993380,1746466291197,-708.96,0.00036438,8]
[359993381,1746466291207,-400.0,0.00036438,8]
[359993382,1746466291217,-551.13,0.00036438,8]
[359993383,1746466291226,-553.1,0.00036438,8]
[359993384,1746466291236,-586.27,0.00036438,8]
[359993385,1746466291246,-400.0,0.00036438,8]
[359993386,1746466291256,-400.0,0.00036438,8]
[359993387,1746466291266,-1186.53,0.00036438,8]
[359993388,1746466291278,-535.86,0.00036438,8]
[359993389,1746466291290,-400.0,0.00036438,8]
[359993390,1746466291300,-1986.73,0.00036438,8]
[359993391,1746466291309,-462.97,0.00036438,8]
[359993392,1746466291319,-406.42,0.00036438,8]
[359993393,1746466291329,-400.0,0.00036438,8]
[359993394,1746466291339,-1488.07,0.00036438,8]
[359993395,1746466291349,-607.06,0.00036438,8]
[359993396,1746466291359,-4132.62,0.00036438,8]
[359993397,1746466291369,-1507.7,0.00036438,8]
[359993398,1746466291379,-1135.42,0.00036438,8]
[359993399,1746466291389,-681.33,0.00036438,8]
[359993400,1746466291398,-400.0,0.00036438,8]
[359993401,1746466291408,-1080.08,0.00036438,8]
[359993402,1746466291417,-479.32313514,0.00036438,8]
[359993403,1746466291427,-735.3,0.00036438,8]
[359993404,1746466291438,-400.0,0.00036438,8]
[359993405,1746466291447,-681.17,0.00036438,8]
[359993406,1746466291457,-400.0,0.00036438,8]
[359993407,1746466291467,-4785.9,0.00036438,8]
[359993408,1746466291477,-162.70763767,0.00036438,8]
[359993409,1746466291487,-400.0,0.00036438,8]
[359993410,1746466291498,-578.15,0.00036438,8]
[359993411,1746466291508,-25922.47,0.00036438,8]
[359993412,1746466291518,-3661.81,0.00036438,8]
[359993413,1746466291528,-400.0,0.00036438,8]
[359993414,1746466291538,-2781.29,0.00036438,8]
[359993415,1746466291547,-1064.62,0.00036438,8]
[359993416,1746466291557,-611.37,0.00036438,8]
[359993417,1746466291566,-400.0,0.00036438,8]
[359993418,1746466291576,-1911.03,0.00036438,8]
[359993419,1746466291585,-3135.4,0.00036438,8]
[359993420,1746466291595,-3885.96,0.00036438,8]
[359993421,1746466291605,-7691.86,0.00036438,8]
[359993422,1746466291614,-4527.66,0.00036438,8]
[359993423,1746466291623,-400.0,0.00036438,8]
[359993424,1746466291633,-7054.49,0.00036438,8]
[359993425,1746466291642,-516.96,0.00036438,8]
[359993426,1746466291652,-604.47,0.00036438,8]
[359993427,1746466291662,-553.59,0.00036438,8]
[359993428,1746466291672,-400.0,0.00036438,8]
[359993429,1746466291681,-1553.26,0.00036438,8]
[359993430,1746466291691,-1471.97,0.00036438,8]
[359993431,1746466291701,-330.60972505,0.00036438,8]
[359993432,1746466291711,-400.0,0.00036438,8]
[359993433,1746466291720,-784.14,0.00036438,8]
[359993434,1746466291729,-566.19,0.00036438,8]
[359993435,1746466291739,-2405.99,0.00036438,8]
[359993436,1746466291748,-1800.71,0.00036438,8]
[359993437,1746466291758,-659.71,0.00036438,8]
[359993438,1746466291768,-3076.91,0.00036438,8]
[359993439,1746466291777,-755.88,0.00036438,8]
[359993440,1746466291787,-712.21,0.00036438,8]
[359993441,1746466291797,-1249.89,0.00036438,8]
[359993442,1746466291806,-411.12,0.00036438,8]
[359993443,1746466291820,-2513.46,0.00036438,8]
[359993444,1746466291830,-400.0,0.00036438,8]
[359993445,1746466291840,-1291.97,0.00036438,8]
[359993446,1746466291850,-3371.49033269,0.00036465,2]
[359993447,1746466292219,-151.0,0.00032876,7]
[359993448,1746466292229,-232.112,0.00033424,8]
[359993449,1746466292241,-144.96275999,0.00033424,8]
[359993450,1746466292251,-400.0,0.00034794,8]
[359993451,1746466292262,-400.0,0.00035068,8]
[359993452,1746466292272,-206.41951163,0.00035189,2]
[359993453,1746466292523,-151.0,0.000331,16]
[359993454,1746466292534,-502.68948837,0.00035189,2]
[359993455,1746466292543,-2242.0,0.00035189,2]
[359993456,1746466292553,-400.0,0.00035342,8]
[359993457,1746466292564,-400.0,0.00035616,8]
[359993458,1746466292574,-400.0,0.0003589,8]
[359993459,1746466292584,-434.66318956,0.00036164,8]
[359993460,1746466292593,-1628.50966731,0.00036465,2]
[359993461,1746466292603,-3501.41,0.000365,7]
[359993462,1746466292612,-1295.80383713,0.00036521,34]
[359993463,1746466292621,-3266.68613363,0.000366,30]
[359993464,1746466292633,-988.32220749,0.000366,30]
[359993465,1746466292920,-160.0,0.0003198,2]
[359993466,1746466292930,-222.6287725,0.00032876,8]
[359993467,1746466292940,-1758.57,0.00032876,8]
[359993468,1746466292950,-1193.73840425,0.0003315,8]
[359993469,1746466292966,-564.83159575,0.0003315,8]
[359993470,1746466292976,-1758.57,0.00033424,8]
[359993471,1746466292985,-1758.57,0.00033698,8]
[359993472,1746466292995,-1758.57,0.00033972,8]
[359993473,1746466293005,-1758.57,0.00034246,8]
[359993474,1746466293015,-1758.57,0.0003452,8]
[359993475,1746466293025,-4333.11165888,0.000366,30]
[359993476,1746466293036,-150.0,0.000366,2]
[359993477,1746466293046,-1200.0,0.0003663,60]
[359993478,1746466293057,-160.0,0.00036646,5]
[359993479,1746466293079,-151.0,0.00036679,2]
[359993480,1746466293089,-231.28369723,0.00036679,2]
[359993481,1746466293100,-400.0,0.00036712,14]
[359993482,1746466293110,-1692.68,0.00036712,8]
[359993483,1746466293121,-408.19,0.00036712,8]
[359993484,1746466293131,-179.85655404,0.00036712,8]
[359993485,1746466293140,-497.81,0.00036712,8]
[359993486,1746466293150,-400.0,0.00036712,8]
[359993487,1746466293160,-480.51,0.00036712,8]
[359993488,1746466293170,-441.76,0.00036712,8]
[359993489,1746466293180,-663.75,0.00036712,8]
[359993490,1746466293191,-468.83,0.00036712,8]
[359993491,1746466293201,-485.03132225,0.00036712,8]
[359993492,1746466293222,-400.0,0.00036712,8]
[359993493,1746466293232,-650.06,0.00036712,8]
[359993494,1746466293243,-400.0,0.00036712,8]
[359993495,1746466293253,-424.49,0.00036712,8]
[359993496,1746466293262,-400.0,0.00036712,8]
[359993497,1746466293273,-400.0,0.00036712,8]
[359993498,1746466293287,-400.0,0.00036712,8]
[359993499,1746466293297,-584.19,0.00036712,8]
[359993500,1746466293307,-544.01,0.00036712,8]
[359993501,1746466293318,-445.11,0.00036712,8]
[359993502,1746466293328,-400.0,0.00036712,8]
[359993503,1746466293338,-596.14,0.00036712,8]
[359993504,1746466293349,-407.26,0.00036712,8]
[359993505,1746466293362,-723.92,0.00036712,8]
[359993506,1746466293373,-516.84,0.00036712,8]
[359993507,1746466293384,-744.57,0.00036712,8]
[359993508,1746466293394,-856.46,0.00036712,8]
[359993509,1746466293404,-763.86,0.00036712,8]
[359993510,1746466293414,-546.99119935,0.00036712,8]
[359993511,1746466293424,-508.21,0.00036712,8]
[359993512,1746466293434,-502.77,0.00036712,8]
[359993513,1746466293444,-2573.19,0.00036712,8]
[359993514,1746466293453,-412.76,0.00036712,8]
[359993515,1746466293464,-1858.43,0.00036712,8]
[359993516,1746466293474,-663.7,0.00036712,8]
[359993517,1746466293483,-752.3,0.00036712,8]
[359993518,1746466293493,-3742.18,0.00036712,8]
[359993519,1746466293503,-742.46,0.00036712,8]
[359993520,1746466293513,-791.14,0.00036712,8]
[359993521,1746466293523,-500.0,0.00036712,8]
[359993522,1746466293534,-400.0,0.00036712,8]
[359993523,1746466293543,-400.0,0.00036712,8]
[359993524,1746466293553,-424.25,0.00036712,8]
[359993525,1746466293563,-400.0,0.00036712,8]
[359993526,1746466293572,-706.79465208,0.00036712,34]
[359993527,1746466293582,-971.48,0.00036712,8]
[359993528,1746466293592,-400.0,0.00036712,8]
[359993529,1746466293602,-410.74,0.00036712,8]
[359993530,1746466293612,-502.97,0.00036712,8]
[359993531,1746466293622,-1385.97,0.00036712,8]
[359993532,1746466293632,-828.56,0.00036712,8]
[359993533,1746466293642,-1013.68,0.00036712,8]
[359993534,1746466293652,-904.75,0.00036712,8]
[359993535,1746466293661,-400.0,0.00036712,8]
[359993536,1746466293671,-1542.95,0.00036712,8]
[359993537,1746466293680,-544.83,0.00036712,8]
[359993538,1746466293690,-906.63,0.00036712,8]
[359993539,1746466293700,-899.92,0.00036712,8]
[359993540,1746466293710,-1685.97,0.00036712,8]
[359993541,1746466293720,-400.0,0.00036712,8]
[359993542,1746466293730,-151.5146618,0.00036712,8]
[359993543,1746466293740,-353.78961507,0.00036712,8]
[359993544,1746466293750,-411.02,0.00036712,8]
[359993545,1746466293760,-2098.43,0.00036712,8]
[359993546,1746466293770,-544.02,0.00036712,8]
[359993547,1746466293780,-942.66,0.00036712,8]
[359993548,1746466293789,-400.0,0.00036712,8]
[359993549,1746466293799,-1085.21,0.00036712,8]
[359993550,1746466293809,-400.0,0.00036712,8]
[359993551,1746466293819,-400.0,0.00036712,8]
[359993552,1746466293830,-413.54,0.00036712,8]
[359993553,1746466293844,-441.99,0.00036712,8]
[359993554,1746466293854,-3512.58,0.00036712,2]
[359993555,1746466293864,-545.82,0.00036712,8]
[359993556,1746466293874,-748.45,0.00036712,8]
[359993557,1746466293885,-1080.9,0.00036712,8]
[359993558,1746466293895,-617.8,0.00036712,8]
[359993559,1746466293905,-400.0,0.00036712,8]
[359993560,1746466293915,-521.08,0.00036712,8]
[359993561,1746466293925,-400.0,0.00036712,8]
[359993562,1746466293936,-580.82,0.00036712,8]
[359993563,1746466293946,-1700.23,0.00036712,8]
[359993564,1746466293956,-421.77,0.00036712,8]
[359993565,1746466293967,-1322.26,0.00036712,8]
[359993566,1746466293977,-400.0,0.00036712,8]
[359993567,1746466293987,-400.0,0.00036712,8]
[359993568,1746466293997,-2273.92,0.00036712,8]
[359993569,1746466294007,-942.85,0.00036712,8]
[359993570,1746466294016,-1099.01,0.00036712,8]
[359993571,1746466294026,-504.9,0.00036712,8]
[359993572,1746466294036,-1796.69,0.00036712,8]
[359993573,1746466294046,-404.27,0.00036712,8]
[359993574,1746466294056,-997.13,0.00036712,8]
[359993575,1746466294067,-2875.2,0.00036712,8]
[359993576,1746466294077,-933.37,0.00036712,8]
[359993577,1746466294087,-400.0,0.00036712,8]
[359993578,1746466294097,-400.0,0.00036712,8]
[359993579,1746466294107,-2166.02,0.00036712,8]
[359993580,1746466294117,-495.11,0.00036712,8]
[359993581,1746466294127,-478.21,0.00036712,8]
[359993582,1746466294138,-828.45,0.00036712,8]
[359993583,1746466294148,-400.0,0.00036712,8]
[359993584,1746466294158,-2370.89,0.00036712,8]
[359993585,1746466294168,-833.54,0.00036712,8]
[359993586,1746466294178,-400.0,0.00036712,8]
[359993587,1746466294188,-11132.27,0.00036712,8]
[359993588,1746466294199,-414.2,0.00036712,8]
[359993589,1746466294208,-1942.95,0.00036712,8]
[359993590,1746466294218,-617.39,0.00036712,8]
[359993591,1746466294228,-534.63,0.00036712,8]
[359993592,1746466294238,-400.0,0.00036712,8]
[359993593,1746466294248,-832.63,0.00036712,8]
[359993594,1746466294258,-400.0,0.00036712,8]
[359993595,1746466294268,-937.4,0.00036712,8]
[359993596,1746466294279,-9074.6,0.00036712,8]
[359993597,1746466294291,-1547.41,0.00036712,8]
[359993598,1746466294301,-1484.01,0.00036712,8]
[359993599,1746466294311,-400.0,0.00036712,8]
[359993600,1746466294320,-2080.35,0.00036712,8]
[359993601,1746466294331,-2232.97,0.00036712,8]
[359993602,1746466294341,-1691.97,0.00036712,8]
[359993603,1746466294351,-400.0,0.00036712,8]
[359993604,1746466294362,-3521.81,0.00036712,8]
[359993605,1746466294372,-708.96,0.00036712,8]
[359993606,1746466294382,-400.0,0.00036712,8]
[359993607,1746466294391,-551.13,0.00036712,8]
[359993608,1746466294401,-553.1,0.00036712,8]
[359993609,1746466294411,-586.27,0.00036712,8]
[359993610,1746466294420,-400.0,0.00036712,8]
[359993611,1746466294430,-400.0,0.00036712,8]
[359993612,1746466294439,-1186.53,0.00036712,8]
[359993613,1746466294612,-535.86,0.00036712,8]
[359993614,1746466294623,-400.0,0.00036712,8]
[359993615,1746466294632,-1986.73,0.00036712,8]
[359993616,1746466294641,-462.97,0.00036712,8]
[359993617,1746466294650,-406.42,0.00036712,8]
[359993618,1746466294659,-400.0,0.00036712,8]
[359993619,1746466294668,-1488.07,0.00036712,8]
[359993620,1746466294678,-607.06,0.00036712,8]
[359993621,1746466294687,-4132.62,0.00036712,8]
[359993622,1746466294697,-1507.7,0.00036712,8]
[359993623,1746466294706,-1135.42,0.00036712,8]
[359993624,1746466294715,-681.33,0.00036712,8]
[359993625,1746466294725,-238.06654117,0.00036712,8]
[359993626,1746466294734,-1080.08,0.00036712,8]
[359993627,1746466294743,-735.3,0.00036712,8]
[359993628,1746466294752,-426.81442627,0.00036712,8]
[359993629,1746466294761,-681.17,0.00036712,8]
[359993630,1746466294771,-400.0,0.00036712,8]
[359993631,1746466294780,-4785.9,0.00036712,8]
[359993632,1746466294790,-400.0,0.00036712,8]
[359993633,1746466294799,-578.15,0.00036712,8]
[359993634,1746466294808,-25922.47,0.00036712,8]
[359993635,1746466294818,-3661.81,0.00036712,8]
[359993636,1746466294827,-331.58347518,0.00036712,8]
[359993637,1746466294836,-2781.29,0.00036712,8]
[359993638,1746466294845,-1064.62,0.00036712,8]
[359993639,1746466294855,-611.37,0.00036712,8]
[359993640,1746466294864,-400.0,0.00036712,8]
[359993641,1746466294873,-1911.03,0.00036712,8]
[359993642,1746466294883,-3135.4,0.00036712,8]
[359993643,1746466294892,-3885.96,0.00036712,8]
[359993644,1746466294901,-7691.86,0.00036712,8]
[359993645,1746466294910,-4527.66,0.00036712,8]
[359993646,1746466294920,-400.0,0.00036712,8]
[359993647,1746466294930,-7054.49,0.00036712,8]
[359993648,1746466294940,-516.96,0.00036712,8]
[359993649,1746466294950,-604.47,0.00036712,8]
[359993650,1746466294959,-553.59,0.00036712,8]
[359993651,1746466294969,-400.0,0.00036712,8]
[359993652,1746466294979,-1553.26,0.00036712,8]
[359993653,1746466294989,-1471.97,0.00036712,8]
[359993654,1746466294998,-784.14,0.00036712,8]
[359993655,1746466295008,-566.19,0.00036712,8]
[359993656,1746466295018,-2405.99,0.00036712,8]
[359993657,1746466295028,-1800.71,0.00036712,8]
[359993658,1746466295039,-659.71,0.00036712,8]
[359993659,1746466295048,-3076.91,0.00036712,8]
[359993660,1746466295058,-755.88,0.00036712,8]
[359993661,1746466295068,-712.21,0.00036712,8]
[359993662,1746466295078,-1249.89,0.00036712,8]
[359993663,1746466295087,-411.12,0.00036712,8]
[359993664,1746466295096,-2513.46,0.00036712,8]
[359993665,1746466295106,-459.65259392,0.00036712,8]
[359993666,1746466295115,-1291.97,0.00036712,8]
[359993667,1746466295125,-3000.0,0.00036712,2]
[359993668,1746466295134,-153.0,0.00036712,30]
[359993669,1746466295144,-2251.34019744,0.0003674,2]
[359993670,1746466295154,-14387.41,0.000368,30]
[359993671,1746466295163,-400.0,0.00036986,14]
[359993672,1746466295172,-1692.68,0.00036986,8]
[359993673,1746466295183,-408.19,0.00036986,8]
[359993674,1746466295192,-497.81,0.00036986,8]
[359993675,1746466295201,-400.0,0.00036986,8]
[359993676,1746466295211,-480.51,0.00036986,8]
[359993677,1746466295220,-441.76,0.00036986,8]
[359993678,1746466295230,-663.75,0.00036986,8]
[359993679,1746466295239,-468.83,0.00036986,8]
[359993680,1746466295249,-400.0,0.00036986,8]
[359993681,1746466295258,-650.06,0.00036986,8]
[359993682,1746466295267,-400.0,0.00036986,8]
[359993683,1746466295277,-424.49,0.00036986,8]
[359993684,1746466295288,-400.0,0.00036986,8]
[359993685,1746466295298,-400.0,0.00036986,8]
[359993686,1746466295307,-400.0,0.00036986,8]
[359993687,1746466295316,-584.19,0.00036986,8]
[359993688,1746466295327,-544.01,0.00036986,8]
[359993689,1746466295336,-445.11,0.00036986,8]
[359993690,1746466295345,-400.0,0.00036986,8]
[359993691,1746466295357,-596.14,0.00036986,8]
[359993692,1746466295367,-407.26,0.00036986,8]
[359993693,1746466295376,-723.92,0.00036986,8]
[359993694,1746466295385,-516.84,0.00036986,8]
[359993695,1746466295395,-744.57,0.00036986,8]
[359993696,1746466295405,-856.46,0.00036986,8]
[359993697,1746466295415,-763.86,0.00036986,8]
[359993698,1746466295424,-508.21,0.00036986,8]
[359993699,1746466295434,-502.77,0.00036986,8]
[359993700,1746466295444,-2573.19,0.00036986,8]
[359993701,1746466295453,-412.76,0.00036986,8]
[359993702,1746466295463,-1858.43,0.00036986,8]
[359993703,1746466295472,-663.7,0.00036986,8]
[359993704,1746466295482,-752.3,0.00036986,8]
[359993705,1746466295491,-3742.18,0.00036986,8]
[359993706,1746466295501,-742.46,0.00036986,8]
[359993707,1746466295511,-791.14,0.00036986,8]
[359993708,1746466295521,-500.0,0.00036986,8]
[359993709,1746466295531,-400.0,0.00036986,8]
[359993710,1746466295541,-400.0,0.00036986,8]
[359993711,1746466295551,-424.25,0.00036986,8]
[359993712,1746466295562,-400.0,0.00036986,8]
[359993713,1746466295572,-971.48,0.00036986,8]
[359993714,1746466295582,-400.0,0.00036986,8]
[359993715,1746466295592,-410.74,0.00036986,8]
[359993716,1746466295602,-502.97,0.00036986,8]
[359993717,1746466295612,-1385.97,0.00036986,8]
[359993718,1746466295622,-828.56,0.00036986,8]
[359993719,1746466295631,-1013.68,0.00036986,8]
[359993720,1746466295641,-904.75,0.00036986,8]
[359993721,1746466295651,-400.0,0.00036986,8]
[359993722,1746466295661,-1542.95,0.00036986,8]
[359993723,1746466295670,-544.83,0.00036986,8]
[359993724,1746466295680,-906.63,0.00036986,8]
[359993725,1746466295690,-899.92,0.00036986,8]
[359993726,1746466295699,-1685.97,0.00036986,8]
[359993727,1746466295708,-400.0,0.00036986,8]
[359993728,1746466295718,-411.02,0.00036986,8]
[359993729,1746466295727,-2098.43,0.00036986,8]
[359993730,1746466295737,-544.02,0.00036986,8]
[359993731,1746466295747,-942.66,0.00036986,8]
[359993732,1746466295756,-400.0,0.00036986,8]
[359993733,1746466295765,-1085.21,0.00036986,8]
[359993734,1746466295774,-400.0,0.00036986,8]
[359993735,1746466295784,-400.0,0.00036986,8]
[359993736,1746466295794,-413.54,0.00036986,8]
[359993737,1746466295803,-441.99,0.00036986,8]
[359993738,1746466295813,-3512.58,0.00036986,2]
[359993739,1746466295823,-545.82,0.00036986,8]
[359993740,1746466295833,-748.45,0.00036986,8]
[359993741,1746466295843,-1080.9,0.00036986,8]
[359993742,1746466295852,-617.8,0.00036986,8]
[359993743,1746466295862,-400.0,0.00036986,8]
[359993744,1746466295871,-521.08,0.00036986,8]
[359993745,1746466295881,-400.0,0.00036986,8]
[359993746,1746466295891,-580.82,0.00036986,8]
[359993747,1746466295900,-1700.23,0.00036986,8]
[359993748,1746466295910,-421.77,0.00036986,8]
[359993749,1746466295919,-1322.26,0.00036986,8]
[359993750,1746466295929,-435.02262618,0.00036986,8]
[359993751,1746466295939,-400.0,0.00036986,8]
[359993752,1746466295949,-2273.92,0.00036986,8]
[359993753,1746466295958,-942.85,0.00036986,8]
[359993754,1746466295968,-1099.01,0.00036986,8]
[359993755,1746466295978,-504.9,0.00036986,8]
[359993756,1746466295987,-1796.69,0.00036986,8]
[359993757,1746466295996,-404.27,0.00036986,8]
[359993758,1746466296006,-997.13,0.00036986,8]
[359993759,1746466296016,-2875.2,0.00036986,8]
[359993760,1746466296025,-933.37,0.00036986,8]
[359993761,1746466296035,-400.0,0.00036986,8]
[359993762,1746466296046,-527.98327288,0.00036986,8]
[359993763,1746466296055,-2166.02,0.00036986,8]
[359993764,1746466296065,-495.11,0.00036986,8]
[359993765,1746466296075,-478.21,0.00036986,8]
[359993766,1746466296084,-828.45,0.00036986,8]
[359993767,1746466296094,-400.0,0.00036986,8]
[359993768,1746466296103,-2370.89,0.00036986,8]